fUST/lending_fUST_20250408
["ID","MTS","AMOUNT","RATE_DAILY","PERIOD"]
[357523250,1744120239780,-1000.0,0.00029152,5]
[357523251,1744120239791,-1000.0,0.00029152,5]
[357523252,1744120239801,-519.31581765,0.00029152,5]
[357523253,1744120239811,-1000.0,0.00029152,5]
[357523254,1744120239821,-500.0,0.00029152,5]
[357523255,1744120239831,-1000.0,0.00029152,5]
[357523256,1744120239841,-1000.0,0.00029152,5]
[357523257,1744120239851,-1000.0,0.00029152,5]
[357523258,1744120239861,-500.0,0.00029152,5]
[357523259,1744120239871,-500.0,0.00029152,5]
[357523261,1744120239881,-1000.0,0.00029152,5]
[357523262,1744120239891,-1000.0,0.00029152,2]
[357523263,1744120239902,-1000.0,0.00029152,5]
[357523264,1744120239911,-1149.72257265,0.00029152,5]
[357523265,1744120239921,-1000.0,0.00029152,5]
[357523267,1744120239931,-338.45606526,0.00029637,2]
[357523268,1744120239941,-199.46,0.00029858,2]
[357523269,1744120239953,-823.0,0.00030149,2]
[357523270,1744120239963,-1000.0,0.00030152,2]
[357523271,1744120239973,-1000.0,0.00030352,5]
[357523272,1744120239983,-503.0752183,0.00030352,5]
[357523273,1744120239992,-500.00000063,0.00030352,5]
[357523274,1744120240003,-245.55625774,0.00030352,5]
[357523275,1744120240012,-503.63354643,0.00030352,5]
[357523276,1744120240022,-2947.94409123,0.00030521,9]
[357523277,1744120240032,-1000.0,0.00030934,5]
[357523278,1744120240042,-1814.92139815,0.00031242,2]
[357523279,1744120240052,-976.36952011,0.00031252,5]
[357523280,1744120240063,-224.84517403,0.00031252,5]
[357523281,1744120240072,-883.58136447,0.00031252,5]
[357523283,1744120240082,-1000.0,0.00031252,5]
[357523284,1744120240092,-500.0,0.00031252,2]
[357523285,1744120240102,-500.0,0.000313,5]
[357523286,1744120240112,-290.48742975,0.000313,5]
[357523287,1744120240121,-500.0,0.000313,5]
[357523289,1744120240131,-501.16306644,0.00031308,5]
[357523290,1744120240141,-338.45606526,0.00032668,2]
[357523291,1744120240151,-1152.0,0.00032708,2]
[357523292,1744120240161,-2947.94409123,0.00032728,10]
[357523293,1744120240171,-361.924444,0.00033752,2]
[357523294,1744120240182,-3847.8180022,0.00033987,2]
[357523295,1744120240192,-151.0,0.000341,16]
[357523296,1744120240203,-2947.94409123,0.00034934,12]
[357523297,1744120240213,-500.0,0.00034973,5]
[357523298,1744120240223,-7259.6855926,0.0003499,2]
[357523299,1744120240234,-154625.87789174,0.00035,2]
[357523300,1744120240244,-14197.25178779,0.00035,14]
[357523301,1744120240255,-628.0,0.00035484,2]
[357523302,1744120240266,-500.0,0.00035616,7]
[357523303,1744120240275,-500.0,0.00035616,7]
[357523304,1744120240286,-500.0,0.00035616,7]
[357523305,1744120240295,-500.0,0.00035616,7]
[357523306,1744120240305,-500.0,0.00035616,7]
[357523307,1744120240315,-500.0,0.00035616,7]
[357523308,1744120240326,-500.0,0.00035616,7]
[357523309,1744120240336,-500.0,0.00035616,7]
[357523310,1744120240346,-603.55659435,0.00035616,7]
[357523311,1744120240356,-338.45606526,0.000357,2]
[357523312,1744120240365,-638.8,0.00035778,30]
[357523313,1744120240375,-1814.92139815,0.0003578,3]
[357523314,1744120240385,-7259.6855926,0.0003579,3]
[357523315,1744120240394,-4903.11580424,0.0003579,3]
[357523316,1744120240404,-182423.78,0.000358,30]
[357523317,1744120240414,-827.1,0.000358,7]
[357523318,1744120240424,-306.40351,0.0003589,2]
[357523319,1744120240434,-791.41292979,0.0003688,2]
[357523320,1744120240445,-2947.94409123,0.00037141,13]
[357523321,1744120240456,-290.08,0.000374,2]
[357523322,1744120240466,-250.49597576,0.0003748,5]
[357523323,1744120240476,-180.0,0.00038315,19]
[357523324,1744120240486,-2000.0,0.0003838,4]
[357523325,1744120240496,-633.14,0.000384,30]
[357523326,1744120240506,-481.32064649,0.00038724,2]
[357523328,1744120240516,-1500.0,0.00039171,5]
[357523330,1744120240526,-1526.92836768,0.00039171,5]
[357523332,1744120240536,-500.0,0.00039171,5]
[357523333,1744120240547,-500.0,0.00039171,5]
[357523334,1744120240556,-1500.0,0.00039171,5]
[357523335,1744120240566,-1500.0,0.00039171,5]
[357523336,1744120240576,-500.0,0.00039171,2]
[357523338,1744120240586,-1500.0,0.00039171,5]
[357523339,1744120240596,-501.78833858,0.00039171,5]
[357523340,1744120240606,-3847.8180022,0.00039224,2]
[357523341,1744120240615,-2947.94409123,0.00039348,15]
[357523342,1744120240627,-1814.92139815,0.00039716,3]
[357523343,1744120240637,-15000.0,0.00039726,5]
[357523344,1744120240647,-152.63,0.000398,31]
[357523345,1744120240659,-152.63,0.000398,31]
[357523346,1744120240669,-152.63,0.000398,31]
[357523347,1744120240680,-152.63,0.000398,31]
[357523348,1744120240699,-152.63,0.000398,31]
[357523349,1744120240713,-152.63,0.000398,31]
[357523350,1744120240724,-29339.43480314,0.0004,60]
[357523351,1744120240736,-2453.89,0.0004,30]
[357523352,1744120240748,-479.83575,0.0004,120]
[357523353,1744120240760,-800.0,0.00040037,30]
[357523354,1744120240773,-800.0,0.00040042,30]
[357523355,1744120240783,-1500.0,0.00040171,2]
[357523356,1744120240794,-500.0,0.0004028,30]
[357523357,1744120240804,-1500.0,0.00040371,5]
[357523358,1744120240815,-500.0,0.00040435,30]
[357523359,1744120240825,-800.0,0.00040492,30]
[357523360,1744120240835,-500.0,0.00040554,30]
[357523361,1744120240846,-500.0,0.00040556,30]
[357523362,1744120240856,-152.921,0.00040559,2]
[357523363,1744120240866,-542.0,0.00040559,2]
[357523364,1744120240876,-706.0,0.00040559,2]
[357523365,1744120240886,-2255.753,0.00040559,2]
[357523366,1744120240896,-150.103,0.00040559,2]
[357523367,1744120240906,-150.097,0.00040559,2]
[357523368,1744120240916,-401.0,0.00040559,2]
[357523369,1744120240926,-2345.24,0.000406,30]
[357523370,1744120240936,-800.0,0.00040628,30]
[357523371,1744120240951,-465.81603232,0.0004066,2]
[357523372,1744120240962,-500.0,0.00040695,30]
[357523373,1744120240972,-800.0,0.0004073,30]
[357523374,1744120240982,-800.0,0.00040768,30]
[357523375,1744120240992,-800.0,0.00040806,30]
[357523376,1744120241002,-800.0,0.00040858,30]
[357523377,1744120241012,-633.14,0.000409,30]
[357523378,1744120241022,-1500.0,0.00040953,5]
[357523379,1744120241032,-800.0,0.00041026,30]
[357523380,1744120241042,-500.0,0.00041099,30]
[357523381,1744120241052,-500.0,0.00041111,30]
[357523382,1744120241063,-500.0,0.00041147,30]
[357523383,1744120241073,-306.40351,0.00041211,120]
[357523384,1744120241083,-800.0,0.00041216,30]
[357523385,1744120241093,-984.6657175,0.00041302,4]
[357523386,1744120241103,-800.0,0.00041307,30]
[357523387,1744120241113,-500.0,0.00041373,30]
[357523388,1744120241123,-500.0,0.00041448,30]
[357523389,1744120241133,-500.0,0.00041482,30]
[357523390,1744120241143,-500.0,0.00041487,30]
[357523391,1744120241152,-2947.94409123,0.00041555,16]
[357523392,1744120241163,-800.0,0.00041604,30]
[357523393,1744120241173,-800.0,0.00041605,30]
[357523394,1744120241182,-500.0,0.00041702,30]
[357523395,1744120241192,-800.0,0.0004173,30]
[357523396,1744120241209,-500.0,0.00041734,30]
[357523397,1744120241218,-500.0,0.00041749,30]
[357523398,1744120241228,-229.0,0.00041768,120]
[357523399,1744120241237,-229.0,0.00041778,120]
[357523400,1744120241246,-229.0,0.00041788,120]
[357523401,1744120241256,-500.0,0.00041797,30]
[357523402,1744120241266,-80600.0,0.00041798,120]
[357523403,1744120241276,-514.37982403,0.000418,15]
[357523404,1744120241287,-827.1,0.000418,30]
[357523405,1744120241296,-1000.0,0.000418,90]
[357523406,1744120241306,-800.0,0.00041871,30]
[357523407,1744120241316,-500.0,0.00041947,30]
[357523408,1744120241325,-1500.000001,0.00042,5]
[357523409,1744120241335,-500.0,0.00042,120]
[357523410,1744120241345,-504.86513593,0.00042,120]
[357523411,1744120241354,-300.0,0.00042,120]
[357523412,1744120241364,-2653.24968132,0.000421,120]
[357523413,1744120241373,-500.0,0.00042124,30]
[357523414,1744120241383,-500.0,0.00042131,30]
[357523415,1744120241392,-500.0,0.00042157,30]
[357523416,1744120241402,-2000.0,0.00042253,8]
[357523417,1744120241411,-800.0,0.00042298,30]
[357523418,1744120241421,-500.0,0.00042311,30]
[357523419,1744120241430,-500.0,0.00042336,30]
[357523420,1744120241440,-209.0000011,0.00042386,30]
[357523421,1744120241456,-188.0,0.000425,30]
[357523422,1744120241466,-199.46372505,0.000425,120]
[357523423,1744120241476,-244.80676883,0.00042579,2]
[357523424,1744120241485,-151.0,0.0004258,120]
[357523425,1744120241495,-1000.0,0.0004258,120]
[357523426,1744120241506,-200.0,0.0004258,3]
[357523427,1744120241515,-400.0,0.0004258,3]
[357523428,1744120241525,-151.0,0.0004258,3]
[357523429,1744120241534,-151.0,0.0004258,3]
[357523430,1744120241543,-151.0,0.0004258,3]
[357523431,1744120241553,-151.0,0.0004258,3]
[357523432,1744120241562,-151.0,0.0004258,3]
[357523433,1744120241572,-151.0,0.0004258,3]
[357523434,1744120241581,-151.0,0.0004258,3]
[357523435,1744120241590,-151.0,0.0004258,3]
[357523436,1744120241600,-151.0,0.0004258,3]
[357523437,1744120241609,-151.0,0.0004258,3]
[357523438,1744120241618,-151.0,0.0004258,3]
[357523439,1744120241628,-151.0,0.0004258,3]
[357523440,1744120241638,-151.0,0.0004258,3]
[357523441,1744120241647,-151.0,0.0004258,3]
[357523442,1744120241656,-151.0,0.0004258,3]
[357523443,1744120241666,-151.0,0.0004258,3]
[357523444,1744120241676,-151.0,0.0004258,3]
[357523445,1744120241686,-151.0,0.0004258,3]
[357523446,1744120241698,-151.0,0.0004258,3]
[357523447,1744120241710,-302.0,0.0004258,3]
[357523448,1744120241719,-151.0,0.0004258,3]
[357523449,1744120241728,-302.0,0.0004258,3]
[357523450,1744120241738,-633.14,0.000426,30]
[357523451,1744120241750,-500.0,0.00042769,30]
[357523452,1744120241760,-500.0,0.00042812,30]
[357523453,1744120241769,-500.0,0.00042882,30]
[357523454,1744120241781,-17789.39796185,0.00042999,3]
[357523455,1744120241790,-50617.09633171,0.00042999,2]
[357523456,1744120241799,-583.0,0.00043,2]
[357523457,1744120241809,-162.0,0.00043,90]
[357523458,1744120241818,-800.0,0.00043139,30]
[357523459,1744120241828,-2200.0,0.00043245,14]
[357523460,1744120241837,-500.0,0.00043364,30]
[357523461,1744120241847,-500.0,0.00043465,30]
[357523462,1744120241856,-706.0,0.00043559,2]
[357523463,1744120241866,-2253.0,0.00043559,2]
[357523464,1744120241875,-401.0,0.00043559,2]
[357523465,1744120241884,-23028.81533121,0.00043668,2]
[357523466,1744120241893,-2947.94409123,0.00043762,18]
[357523467,1744120241903,-500.0,0.0004377,30]
[357523468,1744120241912,-155.7737875,0.00043809,30]
[357523469,1744120241922,-153.0,0.00043809,30]
[357523470,1744120241932,-153.0,0.00043809,30]
[357523471,1744120241941,-153.0,0.00043809,30]
[357523472,1744120241955,-511.40826411,0.00043835,120]
[357523473,1744120241964,-1000.0,0.00043835,120]
[357523474,1744120241973,-1127.78,0.00043835,120]
[357523475,1744120241983,-984.0,0.00043863,120]
[357523476,1744120241992,-500.0,0.00043939,30]
[357523477,1744120242002,-250.0,0.00044,120]
[357523478,1744120242011,-489.97837391,0.00044,2]
[357523479,1744120242021,-182423.78,0.00044,30]
[357523480,1744120242031,-151.0,0.00044,120]
[357523481,1744120242041,-199.100014,0.00044,120]
[357523482,1744120242050,-151.0,0.00044,30]
[357523483,1744120242060,-151.0,0.00044,120]
[357523484,1744120242069,-151.0,0.00044,120]
[357523485,1744120242079,-151.0,0.00044,30]
[357523486,1744120242088,-152.63,0.00044,36]
[357523487,1744120242097,-152.63,0.00044,36]
[357523488,1744120242107,-152.63,0.00044,36]
[357523489,1744120242117,-152.63,0.00044,36]
[357523490,1744120242127,-152.63,0.00044,36]
[357523491,1744120242136,-152.63,0.00044,36]
[357523492,1744120242146,-152.63,0.00044,36]
[357523493,1744120242156,-152.63,0.00044,36]
[357523494,1744120242166,-152.63,0.00044,36]
[357523495,1744120242176,-152.63,0.00044,36]
[357523496,1744120242186,-152.63,0.00044,36]
[357523497,1744120242200,-152.63,0.00044,36]
[357523498,1744120242210,-151.0,0.00044,120]
[357523499,1744120242220,-151.0,0.00044,120]
[357523500,1744120242343,-151.0,0.00044,120]
[357523501,1744120242353,-151.0,0.00044,120]
[357523502,1744120242362,-151.0,0.00044,120]
[357523503,1744120242372,-151.0,0.00044,120]
[357523504,1744120242381,-151.0,0.00044,120]
[357523505,1744120242391,-500.0,0.00044,36]
[357523506,1744120242400,-500.0,0.00044,36]
[357523507,1744120242410,-500.0,0.00044,36]
[357523508,1744120242419,-500.0,0.00044,36]
[357523509,1744120242428,-1539.86322,0.00044,2]
[357523510,1744120242438,-1539.86322,0.00044,2]
[357523511,1744120242449,-151.0,0.00044,120]
[357523512,1744120242459,-151.0,0.00044,120]
[357523513,1744120242468,-151.0,0.00044,120]
[357523514,1744120242478,-151.0,0.00044,120]
[357523515,1744120242487,-151.0,0.00044,120]
[357523516,1744120242497,-160.968227,0.00044,14]
[357523517,1744120242507,-800.0,0.00044012,30]
[357523518,1744120242517,-827.1,0.000441,30]
[357523519,1744120242527,-633.14,0.000441,30]
[357523520,1744120242537,-500.0,0.00044118,30]
[357523521,1744120242546,-2453.89,0.000442,30]
[357523522,1744120242556,-500.0,0.00044215,30]
[357523523,1744120242566,-800.0,0.00044217,30]
[357523524,1744120242575,-500.0,0.0004422,30]
[357523525,1744120242586,-2345.24,0.000443,30]
[357523526,1744120242595,-1127.78,0.00044301,120]
[357523527,1744120242605,-800.0,0.00044328,30]
[357523528,1744120242615,-800.0,0.00044403,30]
[357523529,1744120242624,-3847.8180022,0.00044462,28]
[357523530,1744120242634,-800.0,0.00044467,30]
[357523531,1744120242644,-800.0,0.00044493,30]
[357523532,1744120242654,-500.0738377,0.00044548,36]
[357523533,1744120242664,-500.0,0.00044548,36]
[357523534,1744120242674,-500.0,0.00044548,36]
[357523535,1744120242686,-500.0,0.00044548,36]
[357523536,1744120242701,-500.0,0.00044571,30]
[357523537,1744120242711,-500.0,0.00044637,30]
[357523538,1744120242721,-1127.78,0.00044767,120]
[357523539,1744120242732,-674324.90031706,0.000448,120]
[357523541,1744120242898,-576.16426889,0.00023612,2]
[357523543,1744120242909,-151.183217,0.00044,120]
[357523544,1744120242918,-1343.87220421,0.000448,120]
[357523593,1744120247498,-310.16748517,0.00035842,30]
[357523594,1744120247616,-275.30285483,0.00035842,30]
[357523595,1744120247626,-244.80676883,0.00043999,2]
[357523596,1744120247636,-668618.79160028,0.000448,120]
[357523651,1744121196169,-451.334134,0.00021612,2]
[357523652,1744121226102,-334.790844,0.00021612,2]
[357523653,1744121226128,-893.87701539,0.00021615,2]
[357523654,1744121356092,-1611.66332241,0.00021615,2]
[357523655,1744121356113,-334.901593,0.00021918,2]
[357523656,1744121356136,-175.84181856,0.00022509,2]
[357523657,1744121356159,-952.0,0.00022509,2]
[357523658,1744121356180,-3686.70030995,0.00022518,2]
[357523659,1744121356202,-879.0,0.00022605,3]
[357523660,1744121356223,-300.0,0.00022605,2]
[357523661,1744121356243,-2343.94,0.00022606,3]
[357523662,1744121356264,-1171.97,0.00022606,3]
[357523663,1744121356285,-585.99,0.00022606,3]
[357523664,1744121356306,-292.99,0.00022606,3]
[357523665,1744121356326,-500.0,0.00022615,2]
[357523666,1744121356347,-466.19467601,0.00022615,2]
[357523667,1744121356367,-354.88820599,0.00022615,2]
[357523668,1744121356390,-500.0,0.00022615,2]
[357523669,1744121356412,-500.0,0.00022615,2]
[357523670,1744121356435,-2690.52729692,0.00022615,2]
[357523671,1744121356458,-500.0,0.00022615,2]
[357523672,1744121356481,-500.0,0.00022615,2]
[357523673,1744121356505,-2690.52729692,0.00022615,2]
[357523674,1744121356526,-500.0,0.00022615,2]
[357523675,1744121356549,-2690.52729692,0.00022615,2]
[357523676,1744121356571,-500.0,0.00022615,2]
[357523677,1744121356594,-500.0,0.00022615,2]
[357523678,1744121356616,-2690.52729692,0.00022615,2]
[357523679,1744121356640,-500.0,0.00022615,2]
[357523680,1744121356663,-336.02660746,0.00022615,2]
[357523681,1744121356687,-2690.52729692,0.00022615,2]
[357523682,1744121356708,-500.0,0.00022615,2]
[357523683,1744121356732,-2690.52729692,0.00022615,2]
[357523684,1744121356760,-2690.52729692,0.00022615,2]
[357523685,1744121356783,-2690.52729692,0.00022615,2]
[357523686,1744121356805,-500.0,0.00022615,2]
[357523687,1744121356828,-2690.52729692,0.00022615,2]
[357523688,1744121356851,-500.0,0.00022615,2]
[357523689,1744121356875,-500.0,0.00022615,2]
[357523690,1744121356900,-2690.52729692,0.00022615,2]
[357523691,1744121356922,-500.0,0.00022615,2]
[357523692,1744121356944,-500.0,0.00022615,2]
[357523693,1744121356968,-2690.52729692,0.00022615,2]
[357523694,1744121356989,-500.0,0.00022615,2]
[357523695,1744121357012,-2690.52729692,0.00022615,2]
[357523696,1744121357034,-500.0,0.00022615,2]
[357523697,1744121357058,-2690.52729692,0.00022615,2]
[357523698,1744121357084,-500.0,0.00022615,2]
[357523699,1744121357106,-500.0,0.00022615,2]
[357523700,1744121357135,-2690.52729692,0.00022615,2]
[357523701,1744121357160,-2690.52729692,0.00022615,2]
[357523702,1744121357184,-500.0,0.00022615,2]
[357523703,1744121357208,-2690.52729692,0.00022615,2]
[357523704,1744121357232,-2690.52729692,0.00022615,2]
[357523705,1744121357254,-2690.52729692,0.00022615,2]
[357523706,1744121357276,-2690.52729692,0.00022615,2]
[357523707,1744121357299,-2690.52729692,0.00022615,2]
[357523708,1744121357321,-2690.52729692,0.00022615,2]
[357523709,1744121357344,-2690.52729692,0.00022615,2]
[357523710,1744121357367,-2690.52729692,0.00022615,2]
[357523711,1744121357392,-777.36202948,0.00022615,2]
[357523735,1744121432950,-151.0,0.00022603,2]
[357523736,1744121432960,-326.33627321,0.00022614,2]
[357523737,1744121432969,-377.90593433,0.00022614,2]
[357523738,1744121432981,-122.09406567,0.00022614,2]
[357523739,1744121432990,-448.42174419,0.00022614,2]
[357523740,1744121433000,-300.0,0.00022614,2]
[357523741,1744121433010,-7780.7498358,0.0002262,2]
[357523742,1744121433019,-1451.30538078,0.0002262,2]
[357523743,1744121433031,-1035.5,0.0002262,2]
[357523761,1744121439309,-500.0,0.00022614,2]
[357523762,1744121439319,-1338.83529181,0.00022614,2]
[357523763,1744121439329,-537.33628972,0.00022614,2]
[357523764,1744121439339,-1338.83529181,0.00022614,2]
[357523765,1744121439350,-1338.83529181,0.00022614,2]
[357523766,1744121439360,-1338.83529181,0.00022614,2]
[357523767,1744121439370,-1338.83529181,0.00022614,2]
[357523768,1744121439380,-1338.83529181,0.00022614,2]
[357523769,1744121439390,-1338.83529181,0.00022614,2]
[357523770,1744121439400,-1338.83529181,0.00022614,2]
[357523771,1744121439410,-1338.83529181,0.00022614,2]
[357523772,1744121439420,-1338.83529181,0.00022614,2]
[357523773,1744121439430,-1338.83529181,0.00022614,2]
[357523774,1744121439442,-1338.83529181,0.00022614,2]
[357523775,1744121439457,-1338.83529181,0.00022614,2]
[357523776,1744121439467,-1338.83529181,0.00022614,2]
[357523777,1744121439477,-1338.83529181,0.00022614,2]
[357523778,1744121439487,-1338.83529181,0.00022614,2]
[357523779,1744121439497,-1338.83529181,0.00022614,2]
[357523780,1744121439507,-1338.83529181,0.00022614,2]
[357523781,1744121439517,-1338.83529181,0.00022614,2]
[357523782,1744121439526,-1338.83529181,0.00022614,2]
[357523783,1744121439536,-1338.83529181,0.00022614,2]
[357523784,1744121439546,-1338.83529181,0.00022614,2]
[357523785,1744121439557,-1338.83529181,0.00022614,2]
[357523786,1744121439567,-1338.83529181,0.00022614,2]
[357523787,1744121439576,-1338.83529181,0.00022614,2]
[357523788,1744121439586,-1338.83529181,0.00022614,2]
[357523789,1744121439596,-1338.83529181,0.00022614,2]
[357523790,1744121439605,-1338.83529181,0.00022614,2]
[357523791,1744121439615,-1338.83529181,0.00022614,2]
[357523792,1744121439625,-1338.83529181,0.00022614,2]
[357523793,1744121439637,-1338.83529181,0.00022614,2]
[357523794,1744121439647,-1338.83529181,0.00022614,2]
[357523795,1744121439658,-22413.19461922,0.0002262,2]
[357523796,1744121439668,-500.0,0.00022673,2]
[357523797,1744121439679,-500.0,0.00022673,2]
[357523798,1744121439688,-160.0,0.00022673,2]
[357523799,1744121439703,-519.31581765,0.00022673,2]
[357523800,1744121439714,-160.0,0.00022673,2]
[357523801,1744121439724,-500.0,0.00022673,2]
[357523802,1744121439734,-500.0,0.00022673,2]
[357523803,1744121439744,-505.19260594,0.00022673,2]
[357523804,1744121439754,-500.0,0.00022673,2]
[357523805,1744121439765,-500.0,0.00022673,2]
[357523806,1744121439774,-500.0,0.00022673,2]
[357523807,1744121439784,-500.0,0.00022673,2]
[357523808,1744121439794,-500.0,0.00022673,2]
[357523809,1744121439805,-500.0,0.00022673,2]
[357523810,1744121439815,-500.0,0.00022673,2]
[357523811,1744121439824,-500.0,0.00022673,2]
[357523812,1744121439833,-500.0,0.00022673,2]
[357523813,1744121439843,-3822.23535605,0.000229,4]
[357523814,1744121439852,-500.0,0.00023362,2]
[357523815,1744121439863,-500.0,0.00023362,2]
[357523816,1744121439873,-155.06,0.000236,2]
[357523817,1744121439883,-4483.7917082,0.00023672,2]
[357523818,1744121439892,-500.0,0.00023673,2]
[357523819,1744121439903,-4687.88,0.00023976,3]
[357523820,1744121439913,-2343.94,0.00023976,3]
[357523821,1744121439923,-1171.98,0.00023976,3]
[357523822,1744121439933,-585.98,0.00023976,3]
[357523823,1744121439943,-12530.86563381,0.00023976,3]
[357523824,1744121439956,-729.16666667,0.00023978,3]
[357523825,1744121439966,-419.46366559,0.00023978,3]
[357523826,1744121439976,-160.0,0.00023978,3]
[357523827,1744121439986,-583.0,0.00024,2]
[357523828,1744121439996,-500.0,0.00024,2]
[357523829,1744121440007,-542.46611646,0.000242,2]
[357523830,1744121440017,-420.0,0.00024558,2]
[357523831,1744121440027,-189.92403957,0.000246,2]
[357523832,1744121440038,-189.92403957,0.000246,2]
[357523833,1744121440048,-200.0,0.00024617,2]
[357523834,1744121440058,-159.76477025,0.00024657,2]
[357523835,1744121440068,-975.2930182,0.00024658,4]
[357523836,1744121440078,-3266.85851658,0.000248,2]
[357523837,1744121440088,-501.32302356,0.00024873,2]
[357523838,1744121440099,-501.41449943,0.00024873,2]
[357523839,1744121440115,-414.32866615,0.00024873,2]
[357523840,1744121440126,-500.0,0.00024873,2]
[357523841,1744121440136,-501.43095951,0.00024873,2]
[357523842,1744121440147,-160.0,0.00024873,2]
[357523843,1744121440158,-500.0,0.00024873,2]
[357523844,1744121440168,-500.0,0.00024873,2]
[357523845,1744121440178,-500.0,0.00024873,2]
[357523846,1744121440189,-290.48742975,0.00024873,2]
[357523847,1744121440203,-500.0,0.00024873,2]
[357523848,1744121440214,-500.0,0.00024873,2]
[357523849,1744121440224,-500.0,0.00024873,2]
[357523850,1744121440235,-500.0,0.00024873,2]
[357523851,1744121440245,-500.0,0.00024873,2]
[357523852,1744121440256,-500.0,0.00024873,2]
[357523853,1744121440266,-260.5167328,0.00024873,2]
[357523854,1744121440277,-593.05159071,0.00024873,2]
[357523855,1744121440287,-501.06796866,0.00024873,2]
[357523856,1744121440302,-502.07304544,0.00024873,2]
[357523857,1744121440313,-503.63354643,0.00024873,2]
[357523858,1744121440323,-500.0,0.00024873,2]
[357523859,1744121440333,-500.0,0.00024873,2]
[357523860,1744121440343,-500.0,0.00024873,2]
[357523861,1744121440353,-500.0,0.00024873,2]
[357523862,1744121440363,-500.0,0.00024873,2]
[357523863,1744121440373,-500.0,0.00024873,2]
[357523864,1744121440383,-500.0,0.00024873,2]
[357523865,1744121440394,-500.0,0.00024873,2]
[357523866,1744121440403,-617736.794053,0.000249,2]
[357523867,1744121440413,-349.65846953,0.00025032,2]
[357523868,1744121440423,-544.47641943,0.00025131,2]
[357523869,1744121440433,-3822.235356,0.00025141,5]
[357523870,1744121440443,-503.0752183,0.00025524,2]
[357523871,1744121440456,-500.0,0.00025645,3]
[357523872,1744121440466,-160.0,0.00025667,2]
[357523873,1744121440476,-837.41003169,0.00025699,2]
[357523874,1744121440486,-12530.86563381,0.00025699,2]
[357523875,1744121440495,-419.46366559,0.00025699,2]
[357523876,1744121440504,-2000.0,0.0002587,2]
[357523878,1744121440514,-200.0,0.00025987,2]
[357523879,1744121440524,-343.83498097,0.00026321,2]
[357523880,1744121440534,-587.0,0.0002667,2]
[357523881,1744121440543,-200.0,0.00027356,2]
[357523882,1744121440553,-500.0,0.00027365,3]
[357523884,1744121440564,-3822.235356,0.00027383,7]
[357523885,1744121440575,-500.0,0.00027397,5]
[357523886,1744121440584,-3686.70030995,0.00027819,2]
[357523887,1744121440594,-1000.0,0.00028152,2]
[357523888,1744121440604,-1000.0,0.00028152,5]
[357523890,1744121440730,-500.0,0.00028152,5]
[357523891,1744121440749,-1000.0,0.00028152,5]
[357523892,1744121440759,-1000.0,0.00028152,5]
[357523893,1744121440772,-976.36952011,0.00028152,5]
[357523894,1744121440782,-500.0,0.00028152,5]
[357523895,1744121440791,-224.84517403,0.00028152,5]
[357523896,1744121440802,-1000.0,0.00028152,5]
[357523897,1744121440812,-1001.78833858,0.00028152,5]
[357523898,1744121440825,-1000.0,0.00028152,5]
[357523899,1744121440836,-200.0,0.00028726,2]
[357523900,1744121440846,-1000.0,0.00028842,5]
[357523901,1744121440855,-1000.0,0.00028842,5]
[357523902,1744121440865,-349.65846949,0.00028842,2]
[357523903,1744121440875,-823.0,0.00028963,2]
[357523904,1744121440885,-544.47641943,0.00029142,2]